Cogmind - Beta 11 X3 @@@ ROGUE MODE // 2021.03.16 @ 20:56:58 Player: Judas Result: Destroyed by D-53 Grenadier with Mini Grenade Launcher Performance ------------- Evolutions (0) 0 Regions Visited (2) 400 Robots Destroyed (8) 40 Value Destroyed (177) 177 Prototype IDs (0) 0 Alien Tech Used (0) 0 Bonus (0) 0 TOTAL SCORE: 617 Bonus ------- None Cogmind --------- Core Integrity 0/250 Matter 284/300 Energy 42/100 System Corruption 1% Temperature Cool (0) Movement Treading (157) Location -10/Mines Parts ------- > --- POWER (1) -------- (None) > --- PROPULSION (2) --- Armored Treads Advanced Treads > --- UTILITY (2) ------ Small Storage Unit > --- WEAPON (2) ------- EM Pulse Gun > --- INVENTORY (8) ---- Light Treads Light Treads EM Pulse Gun Small Laser Peak State ------------ > --- POWER ------------ Fission Core > --- PROPULSION ------- Armored Treads Advanced Treads > --- UTILITY ---------- Small Storage Unit > --- WEAPON ----------- Light Assault Rifle Light Assault Rifle > --- INVENTORY -------- Light Treads Light Treads EM Pulse Gun EM Pulse Gun EM Pulse Gun Small Laser [Rating: 14] Favorites ----------- Power Light Ion Engine Engine Light Ion Engine Power Core Fission Core Propulsion Aluminum Leg Treads Advanced Treads Leg Aluminum Leg Utility Small Storage Unit Device Terrain Scanner Storage Small Storage Unit Weapon Light Assault Rifle Energy Gun EM Pulse Gun Ballistic Gun Light Assault Rifle Build | -11 -10 -10 ------- Run | Scr Mat Min Slots Evolved . | . . . Power . | . . . Propulsion . | . . . Utility . | . . . Weapon . | . . . Parts Attached 12 | 1 4 7 Power 2 | . . 2 Engine 1 | . . 1 Core 1 | . . 1 Reactor . | . . . Propulsion 2 | . . 2 Treads 2 | . . 2 Leg . | . . . Wheel . | . . . Hover . | . . . Flight . | . . . Utility 1 | . 1 . Device 1 | . 1 . Storage . | . . . Processor . | . . . Hackware . | . . . Protection . | . . . Artifact . | . . . Weapon 7 | 1 3 3 Energy Gun 4 | 1 1 2 Energy Cannon . | . . . Ballistic Gun 3 | . 2 1 Ballistic Cannon . | . . . Launcher . | . . . Special Weapon . | . . . Impact Weapon . | . . . Slashing Weapon . | . . . Piercing Weapon . | . . . Special Melee Weapon . | . . . Unidentified Prototypes . | . . . Parts Lost 7 | . . 7 Power 3 | . . 3 Propulsion . | . . . Utility 1 | . . 1 Weapon 3 | . . 3 Highest Loss Streak 4 | . . 4 Average Slot Usage (%) 88 | . 86 91 Engine 11 | . 14 8 Core 1 | . . 3 Treads 8 | . . 18 Leg 19 | . 28 9 Device 4 | . 1 7 Storage 14 | . 14 14 Energy Gun 15 | . 24 3 Ballistic Gun 12 | . 3 24 Naked Turns . | . . . Heaviest Build 17 | 11 12 17 Greatest Support 42 | 20 20 42 Greatest Overweight (x) . | . . . Average Overweight (x) . | . . . Largest Inventory Capacity 8 | 8 8 8 Average Capacity 8 | 8 8 8 Most Carried 7 | 6 7 7 Average Carried 5 | 4 4 6 Final Capacity 8 | 8 8 8 Final Carried 7 | 4 7 4 Class Distribution -------------------- 100% | Mutant Dominant Class ---------------- Mutant | -10/Materials Mutant | -10/Mines Resources | -11 -10 -10 ----------- Run | Scr Mat Min Matter Collected 336 | 210 . 126 Remotely . | . . . Salvage Created 322 | 111 46 165 Parts 17 | 5 7 5 Haulers Intercepted . | . . . Recyclers Shooed 1 | 1 . . Parts Field Recycled . | . . . Retrieved Matter . | . . . Parts Self-Destructed . | . . . Prevented . | . . . Kills | -11 -10 -10 ------- Run | Scr Mat Min Combat Hostiles Destroyed 11 | . 3 8 Guns 10 | . 2 8 AOE 1 | . 1 . Classes Destroyed 6 | 2 1 3 Tunneler 1 | 1 . . Recycler 1 | 1 . . Swarmer 3 | . 3 . Grunt 2 | . . 2 Demolisher 1 | . . 1 Assembled 5 | . . 5 Best Kill Streak 3 | 2 3 3 Combat Bots Only 3 | . 3 3 Max Kills in Single Turn 1 | 1 1 1 Gunslinging . | . . . Exploded 1 | . 1 . Melee . | . . . Uniques/NPCs Destroyed . | . . . Combat | -11 -10 -10 -------- Run | Scr Mat Min Damage Taken 1109 | . 114 995 Core 257 | . 41 216 Absorbed by Shields . | . . . Core Remaining (%) 100 | 100 . . Volleys Fired 55 | 7 11 37 Largest 2 | 2 2 2 Hottest 80 | 80 80 80 Shots Fired 107 | 14 22 71 Gun 107 | 14 22 71 Cannon . | . . . Launcher . | . . . Special . | . . . Kinetic 62 | . . 62 Thermal 18 | 7 11 . Explosive . | . . . Electromagnetic 27 | 7 11 9 Robot Hit Streak 13 | 6 4 13 Robot Miss Streak 6 | 3 6 2 Penetration Max . | . . . Secondary Targets 4 | . 2 2 Max Gunslinging Chain 1 | . 1 1 Shots Hit Robots 66 | 10 7 49 Core Hits 31 | 3 3 25 Critical Hits . | . . . Critical Kills . | . . . Critical Parts Destroyed . | . . . Melee Attacks . | . . . Impact . | . . . Slashing . | . . . Piercing . | . . . Sneak Attacks . | . . . Combat Hostiles . | . . . Follow-up Attacks . | . . . Damage Inflicted 636 | 117 116 403 Guns 594 | 117 74 403 Cannons . | . . . Explosions 42 | . 42 . Melee . | . . . Ramming . | . . . Kinetic 330 | . . 330 Thermal 131 | 67 64 . Explosive . | . . . Electromagnetic 175 | 50 52 73 Impact . | . . . Slashing . | . . . Piercing . | . . . Highest Corruption 1 | . . 1 Average Corruption 1 | . . 1 Corruption Purged . | . . . Overload Shots . | . . . Overflow Damage 1 | . 1 . Projectiles . | . . . Explosions 1 | . 1 . Melee . | . . . Knockbacks . | . . . Impact . | . . . Kinetic . | . . . Secondary . | . . . Self-Inflicted Damage . | . . . Shots . | . . . Rammed . | . . . Targets Rammed . | . . . Kicked . | . . . Crushed . | . . . Highest Temperature 90 | 54 90 85 Average Temperature 25 | 24 34 19 Received Heat Transfer 45 | . . 45 Siege Activations . | . . . Robots Corrupted . | . . . Combat Hostiles . | . . . Parts Fried . | . . . Impact Corruptions . | . . . Robots Melted . | . . . Combat Hostiles . | . . . Parts Melted . | . . . Heat Transferred 250 | 150 100 . Parts Sabotaged . | . . . Parts Stolen . | . . . Parts Stripped . | . . . Power Chain Reactions 1 | . 1 . Missiles Intercepted . | . . . Alert | -11 -10 -10 ------- Run | Scr Mat Min Peak Influence 106 | 10 106 105 Initial 40 | . 6 40 Average 52 | 2 35 83 Maximum Alert Level . | . . . Low Security (%) 100 | 100 100 100 Level 1 . | . . . Level 2 . | . . . Level 3 . | . . . Level 4 . | . . . Level 5 . | . . . High Security . | . . . Max Security . | . . . Squads Dispatched 1 | . 1 . Investigation . | . . . Extermination . | . . . Reinforcement 1 | . 1 . Assault . | . . . Garrison . | . . . Intercept . | . . . Construction Impeded . | . . . Haulers Reinforced . | . . . Stealth | -11 -10 -10 --------- Run | Scr Mat Min Distress Signals 1 | . 1 . Communications Jammed . | . . . Distress Signals . | . . . Times Spotted 19 | . 7 12 Peak Tracking Total 4 | . 4 4 Tactical Retreats . | . . . Traps | -11 -10 -10 ------- Run | Scr Mat Min Traps Triggered 2 | . . 2 Indirectly . | . . . Trap Hack Attempts . | . . . Triggered . | . . . Disarmed . | . . . Reprogrammed . | . . . Reused . | . . . Traps Extracted . | . . . Installed . | . . . Triggered . | . . . Machines | -11 -10 -10 ---------- Run | Scr Mat Min Machines Disabled . | . . . Max in Single Turn . | . . . Machines Sabotaged . | . . . Garrisons Compromised . | . . . Overloaded Fab Kills . | . . . Fab Network Shutdowns . | . . . Hacking | -11 -10 -10 --------- Run | Scr Mat Min Machines Accessed 1 | . . 1 Terminals . | . . . Fabricators . | . . . Repair Stations . | . . . Recycling Units . | . . . Scanalyzers . | . . . Garrison Access . | . . . Total Hacks 1 | . . 1 Successful 1 | . . 1 Failed . | . . . Catastrophic . | . . . Database Lockouts . | . . . Manual . | . . . Terminals . | . . . Fabricators . | . . . Repair Stations . | . . . Recycling Units . | . . . Scanalyzers . | . . . Garrison Access . | . . . Terminal Hacks 1 | . . 1 Open Door 1 | . . 1 Fabricator Hacks . | . . . Repair Station Hacks . | . . . Recycling Unit Hacks . | . . . Scanalyzer . | . . . Garrison Access Hacks . | . . . Unauthorized Hacks . | . . . Terminals . | . . . Fabricators . | . . . Repair Stations . | . . . Recycling Units . | . . . Scanalyzers . | . . . Garrison Access . | . . . Data Cores Recovered . | . . . Used . | . . . Hacking Detections . | . . . Full Trace Events . | . . . Feedback Events . | . . . Feedback Blocked . | . . . Robot Schematics Acquired . | . . . Robots Built . | . . . Matter . | . . . Time . | . . . Total Robot Build Rating . | . . . Part Schematics Acquired . | . . . Parts Built . | . . . Matter . | . . . Time . | . . . Total Part Build Rating . | . . . Parts Repaired . | . . . Time . | . . . Parts Recycled . | . . . Recycled Matter . | . . . Retrieved Matter . | . . . Retrieved Components . | . . . Parts Scanalyzed . | . . . Part Schematics Acquired . | . . . Parts Damaged . | . . . Bothacking | -11 -10 -10 ------------ Run | Scr Mat Min Used RIF Installer . | . . . Robots Hacked . | . . . Non-combat . | . . . Combat . | . . . Robot Hacks Applied . | . . . Relay Couplers Released . | . . . Robots Rewired . | . . . Allies Hacked . | . . . Hacks Repelled . | . . . Allies | -11 -10 -10 -------- Run | Scr Mat Min Total Allies . | . . . Largest Group . | . . . Highest-Rated Group . | . . . Highest-Rated Ally . | . . . Total Orders . | . . . Ally Attacks . | . . . Total Damage . | . . . Kills . | . . . Allies Corrupted . | . . . Allies Melted . | . . . Intel | -11 -10 -10 ------- Run | Scr Mat Min Robot Analysis Total . | . . . Derelict Logs Recovered . | . . . Drone Launches . | . . . Drone Recoveries . | . . . Exploration | -11 -10 -10 ------------- Run | Scr Mat Min Turns Passed 624 | 60 309 255 Spaces Moved 359 | 31 222 106 Core . | . . . Treads 48 | . . 48 Legs 311 | 31 222 58 Wheels . | . . . Hover . | . . . Flight . | . . . Fastest Speed 120 | 120 120 120 Average Speed 124 | 120 120 136 Slowest Speed 157 | 120 120 157 Overloaded Moves . | . . . Propulsion Burnouts . | . . . Robots Hopped . | . . . Cave-ins Triggered . | . . . Exploration Rate (%) 25 | 3 47 27 Regions Visited 2 Branch Regions 1 Pre-discovered Areas . | . . . Known Exits Taken . | . . . Unknown Exits Taken 2 | 1 1 . Scrap Searched 1 | . . 1 Spaces Dug . | . . . Terrain Destroyed 4 | . 4 . Melee . | . . . Projectile . | . . . AOE 4 | . 4 . Terrain Rammed . | . . . Walls Destroyed . | . . . Machines Disabled . | . . . Actions | -11 -10 -10 --------- Run | Scr Mat Min Total 438 | 40 241 157 Wait 8 | . 3 5 Move 357 | 30 221 106 Hop . | . . . Pick Up 1 | . 1 . Fast Attach 5 | . 2 3 Attach 3 | . . 3 Detach . | . . . Swap 4 | 1 2 1 Drop 5 | 2 1 2 Fire 55 | 7 11 37 Melee . | . . . Ram . | . . . Kick . | . . . Crush . | . . . Escape Stasis . | . . . Rewire . | . . . Trap . | . . . Miscellaneous . | . . . Route ------- -11/Scrapyard -10/Materials (discovered 2 exits: [*Mat] / *Min) -10/Mines History --------- Turn | Location | Event 1 | -11/Scrapyard | Discovered new exit (range 3) 61 | -11/Scrapyard | Entered Materials 221 | -10/Materials | Discovered new exit (range 12) 332 | -10/Materials | Build established: Mutant 344 | -10/Materials | Discovered new exit (range 13) 370 | -10/Materials | Entered Mines 455 | -10/Mines | Met a Derelict who couldn't figure out how to use a Trap Extractor 470 | -10/Mines | Assembled infested the area 475 | -10/Mines | Assisted by a Guerilla fighting off Assembled 601 | -10/Mines | Core integrity fell below 50% 608 | -10/Mines | Core integrity fell below 20% 625 | -10/Mines | Destroyed by D-53 Grenadier with Mini Grenade Launcher Last Messages --------------- 00613_ U-05 Engineer lays Concrete. 00614_ K-01 Serf collects debris. 00615_ U-05 Engineer builds a Wall. 00615_ Fission Core destroyed. 00615_ Lgt. Assault Rifle destroyed. 00615_ U-05 Engineer destroyed. 00617_ Lgt. Assault Rifle destroyed. 00617_ K-01 Serf collects debris. 00619_ U-05 Engineer lays Concrete. 00620_ U-05 Engineer builds a Wall. 00620_ K-01 Serf collects debris. 00621_ EM Pulse Gun destroyed. 00621_ K-01 Serf collects debris. 00623_ The unstable cave ceiling collapses. 00623_ R-06 Scavenger destroyed. 00624_ The unstable cave ceiling collapses. 00624_ U-05 Engineer lays Concrete. 00624_ K-01 Serf collects debris. 00625_ U-05 Engineer builds a Wall. 00625_ K-01 Serf collects debris. Map ----- +----------------------------------------------------+ | | | | | | | | | | | | | | | | | | | | | | | | | | | | | | | | | | | | | | | | | | | ????????????????????### ###?????????????????? | | ?????????????????##### ##????????????????? | | ?????????????##### #????????????????? | | ?????????????# !% #????????????????? | | ????????????# d= @ #????????????????? | | ????????????# u# ####?????????????? | | ????????????# # < #?????????????? | | ??????????? # %### k k#?????????????? | | ?????????# ??# ##?## # ## ##?????????????? | | ?????????????### ???#######% ;# #??????????????? | | ??????????????## ????????##%%#; #??????????????? | | ???????????????#? ?????#####"% #??????????????? | | ???????????????? ?????# !%% ;###?#????????????? | | ???????????????? ??????# ###"####????????????????? | | ??????????????? %??????# #?###???#???????????????? | | ??????????????? ?????### #???#???????????????????? | | ?????????????????????# ##??????????????????????? | | ?????????????????????# ####?#?????????????????? | | ?????????????????????# ##??????????????????? | | ????????????????????### ##?????????????????? | | ???????????????????#??## ####??????????????? | | ???????????? ?? ???????## ##??#??????????? | | ??????????????#??????##### ##???? ??????? | | ?????????????????????# !### #### ????? | | ????????????????????##= ! X ????? | | ????????????????????# ] ????? | | ????????????????????# ]! ????? | | ????????????????????## ==# ????? | | ????????????????????# ! ????? | +----------------------------------------------------+ Best States ------------- Heat Dissipation 25 Energy Generation 18 Energy Capacity 310 Matter Stores 300 Matter Capacity 300 Sight Range 16 Terrain Scan Range 14 Terrain Scan Density 10 Evasion (%) 55 Recoil Reduction 2 Item Schematics ----------------- None Robot Schematics ------------------ None Fabricated ------------ Nothing Alien Tech Used ----------------- None Achievements -------------- None Challenges ------------ None Game ------ Seed HeartGaussMinigun Manual? 0 Play Time 00:08:56 Cumulative 91.7 hours Start 2021.03.16 @ 20:38:58 End 2021.03.16 @ 20:56:58 Sessions 1 Manual Loads 0 Difficulty Rogue Special Mode None Game No. 159 Rogue 154 Adventurer 0 Explorer 5 Win Type - Total 0 Types 0/0/0/0/0/0/0/0/0 Lore% 40 Gallery% 54 Achievement% 42 Wizard Run 0 Options --------- ASCII 0 Keyboard 0 Movement Mouse Keybinds 0 Fullscreen 2 Font 18/Smallcaps Map View 76x50 Tactical HUD 1 Map Filters NONE Filters NONE Steam 1 RUN: 05643a92-9bd7-48c3-9ea8-405a6e4fd224